Cogmind - Beta 10.2 @@@ ROGUE MODE // 2020.11.01 @ 20:27:49 // Halloween2020/ForbiddenLore Player: derk Result: Destroyed by PD-Q4LSOA5ZHE with Hellfire Missile Launcher Performance ------------- Evolutions (7) 3500 Regions Visited (28) 5600 Robots Destroyed (390) 1950 Value Destroyed (17388) 17388 Prototype IDs (73) 1460 Alien Tech Used (0) 0 Bonus (8327) 8327 TOTAL SCORE: 38225 Bonus ------- High Alert Combat Kills 2826 Follower Combat Kills 2938 Network Hubs Disabled 200 Met Data Miner 300 Met Imprinter 300 Was Imprinted 300 Met R17 at Cetus 500 Scanned by Researcher 500 Acquired SGEMP 2000 Friendly Fire -1537 Cogmind --------- Core Integrity 0/1300 Matter 291/300 Energy 99/100 System Corruption 30% Temperature Cool (0) Movement Core (50) Location -3/Testing Parts ------- > --- POWER (1) -------- (None) > --- PROPULSION (4) --- (None) > --- UTILITY (12) ----- (None) > --- WEAPON (4) ------- (None) > --- INVENTORY (4) ---- Quantum Capacitor Smartbomb Launcher Peak State ------------ > --- POWER ------------ Light Quantum Reactor > --- PROPULSION ------- Myomer Leg Myomer Exoskeleton > --- UTILITY ---------- Improved Fusion Compressor Advanced Heat Sink High-capacity Storage Unit High-capacity Storage Unit High-capacity Storage Unit Experimental Energy Well Spectral Analyzer Advanced Signal Interpreter Advanced Target Analyzer Advanced Cloaking Device Centrium Medium Armor Plating > --- WEAPON ----------- KE Penetrator Enhanced Coil Gun Power Sword Phasing Sabre > --- INVENTORY -------- Light Antimatter Reactor Particle Reactor Medium Treads Medium Treads Medium Treads Flexi-carbon Leg Flexi-carbon Leg Flexi-carbon Leg Flexi-carbon Leg Flexi-carbon Leg Myomer Leg Experimental Energy Well Experimental Matter Compressor Quantum Capacitor Compact Tesla Bomb Launcher Smartbomb Launcher Powered Hammer SGEMP Prototype [Rating: 154] Favorites ----------- Power Antimatter Reactor Engine Improved Ion Engine Power Core Micro Nuclear Core Reactor Antimatter Reactor Propulsion Light Treads Treads Light Treads Leg Aluminum Leg Wheel Armored Huge Wheel Hover Unit Aerolev Unit Utility High-capacity Storage Unit Device Experimental Sensor Array Storage High-capacity Storage Unit Processor Advanced Signal Interpreter Hackware Improved Hacking Suite Protection Hardened Medium Armor Plating Weapon Improved KE Penetrator Energy Gun Precision Beam Rifle Energy Cannon Improved EM Pulse Cannon Ballistic Gun Improved KE Penetrator Ballistic Cannon Heavy Gauss Cannon Launcher Mini Grenade Launcher Special Weapon Remote Datajack Impact Weapon Powered Hammer Slashing Weapon Phasing Sabre Piercing Weapon Plasma Lance Special Melee Weapon Dirty Datajack Build | -11 -10 -10 -10 -9 -8 -7 -7 -7 -7 -6 -6 -6 -6 -6 -6 -6 -5 -5 -5 -5 -5 -5 -4 -4 -4 -4 -3 -3 ------- Run | Scr Mat Min Exi Min Mat Fac Low Low Dat Pro Fac Was Fac Low Low Zio Pro Fac Ext Cet Arc Hub Fac Was Fac Arm Res Tes Slots Evolved 14 | . . . . . 4 2 . . . . 2 . . . . . . 2 . . . . 2 . . . 2 . Power . | . . . . . . . . . . . . . . . . . . . . . . . . . . . . . Propulsion 2 | . . . . . . . . . . . 1 . . . . . . . . . . . . . . . 1 . Utility 10 | . . . . . 4 2 . . . . 1 . . . . . . . . . . . 2 . . . 1 . Weapon 2 | . . . . . . . . . . . . . . . . . . 2 . . . . . . . . . . Parts Attached 518 | 7 13 1 2 5 66 52 10 8 . 12 35 9 21 4 . 6 8 22 23 21 11 10 19 19 32 34 15 53 Power 33 | 1 2 . . . 3 3 1 . . 1 . 1 2 . . . . 1 1 1 1 . 1 3 2 2 . 7 Engine 8 | 1 2 . . . 3 1 . . . 1 . . . . . . . . . . . . . . . . . . Core 4 | . . . . . . 2 1 . . . . 1 . . . . . . . . . . . . . . . . Reactor 21 | . . . . . . . . . . . . . 2 . . . . 1 1 1 1 . 1 3 2 2 . 7 Propulsion 93 | 2 5 . 1 2 14 11 . . . . 7 3 3 1 . . 1 6 8 3 . 2 3 3 5 3 1 9 Treads 62 | 2 3 . . . 9 5 . . . . 2 2 2 1 . . 1 6 6 3 . 2 3 3 5 3 1 3 Leg 12 | . 1 . . 1 4 . . . . . . . . . . . . . . . . . . . . . . 6 Wheel 18 | . 1 . 1 1 . 6 . . . . 5 1 1 . . . . . 2 . . . . . . . . . Hover 1 | . . . . . 1 . . . . . . . . . . . . . . . . . . . . . . . Flight . | . . . . . . . . . . . . . . . . . . . . . . . . . . . . . Utility 238 | 2 4 . 1 . 31 24 6 6 . 7 14 3 7 1 . 4 1 14 10 8 7 6 12 8 15 17 11 19 Device 122 | 1 . . . . 12 14 3 4 . 5 4 2 4 . . 1 . 7 4 4 5 4 5 6 10 10 8 9 Storage 26 | 1 4 . 1 . 3 1 . . . . 2 . . . . 1 . 3 . 1 1 . . . . 3 1 4 Processor 14 | . . . . . 1 . 1 . . 1 . 1 . . . . . 1 . . . . 2 . . 3 2 2 Hackware 15 | . . . . . . 2 . 1 . . 5 . . . . . . . . . 1 . 4 . 1 . . 1 Protection 61 | . . . . . 15 7 2 1 . 1 3 . 3 1 . 2 1 3 6 3 . 2 1 2 4 1 . 3 Artifact . | . . . . . . . . . . . . . . . . . . . . . . . . . . . . . Weapon 154 | 2 2 1 . 3 18 14 3 2 . 4 14 2 9 2 . 2 6 1 4 9 3 2 3 5 10 12 3 18 Energy Gun 24 | 1 . . . . 9 6 . . . 2 1 . . . . . . 1 2 . . . . . . 2 . . Energy Cannon 12 | . . . . . 1 . 1 1 . . 1 . 2 . . . . . . . . . . . . 2 . 4 Ballistic Gun 71 | 1 2 . . 2 5 2 . . . 2 6 2 4 1 . 1 3 . . 8 3 2 3 2 3 6 3 10 Ballistic Cannon 6 | . . . . . . . . . . . . . . . . . . . 1 1 . . . . 3 1 . . Launcher 17 | . . 1 . 1 3 1 1 1 . . . . . 1 . . 2 . 1 . . . . 2 3 . . . Special Weapon 1 | . . . . . . 1 . . . . . . . . . . . . . . . . . . . . . . Impact Weapon 11 | . . . . . . 3 1 . . . 4 . 3 . . . . . . . . . . . . . . . Slashing Weapon 10 | . . . . . . 1 . . . . 1 . . . . 1 1 . . . . . . 1 1 1 . 3 Piercing Weapon 1 | . . . . . . . . . . . . . . . . . . . . . . . . . . . . 1 Special Melee Weapon 1 | . . . . . . . . . . . 1 . . . . . . . . . . . . . . . . . Unidentified Prototypes 41 | . . . . . 7 1 . . . 1 . . . . . 1 . 6 . 6 . 1 1 . . 9 . 8 Parts Lost 111 | . 3 . . 1 11 3 1 1 . 2 4 . 7 1 . . . 2 . . . 6 2 8 10 7 5 37 Power 16 | . 1 . . . 2 . 1 . . 1 1 . 1 . . . . . . . . . 1 2 1 . . 5 Propulsion 21 | . 2 . . 1 3 . . . . . 1 . 1 . . . . . . . . 2 . 1 2 2 . 6 Utility 42 | . . . . . 5 2 . . . . 1 . 4 1 . . . 2 . . . 2 1 3 4 2 5 10 Weapon 32 | . . . . . 1 1 . 1 . 1 1 . 1 . . . . . . . . 2 . 2 3 3 . 16 Highest Loss Streak 14 | . 2 . . 1 6 1 1 1 . 2 3 . 4 1 . . . 1 . . . 3 1 6 6 7 2 14 Average Slot Usage (%) 91 | . 99 100 89 84 95 96 92 91 84 90 93 96 92 93 93 93 93 73 77 91 93 93 95 86 92 93 86 81 Engine 3 | . 14 14 14 14 9 1 . . . 2 5 . . . . . . . . . . . . . . . . . Core 1 | . . . . . . 5 7 7 7 4 . 6 1 . . . . . . . . . . . . . . . Reactor 2 | . . . . . . . . . . . . . 4 6 6 6 6 5 5 5 5 5 5 4 4 5 4 3 Treads 9 | . 24 14 14 14 16 5 . . . . . 11 11 6 6 6 6 6 7 10 11 10 13 9 9 9 9 5 Wheel 4 | . 2 14 14 9 . 6 7 7 7 7 13 4 1 6 6 6 6 3 4 . . . . . . . . . Device 10 | . . . . . 12 7 12 9 7 13 8 12 13 13 13 13 13 12 14 8 10 10 7 10 12 16 18 10 Storage 19 | . 27 28 17 14 19 23 23 23 23 23 20 20 20 20 20 20 20 18 20 17 17 17 15 15 15 17 14 20 Processor 8 | . . . . . . 7 12 9 7 13 11 10 6 6 6 6 6 10 11 11 10 5 7 15 15 21 20 14 Hackware 5 | . . . . . . 13 1 5 7 1 14 13 13 13 13 12 6 . . . . 5 18 7 4 . . 1 Protection 7 | . . . . . 17 8 9 12 15 8 4 2 5 6 6 6 13 5 5 13 11 11 6 4 8 1 . 2 Energy Gun 2 | . 2 . . . 7 7 . . . 3 2 . . . . . . 5 4 . . . . . . . . . Ballistic Gun 10 | . 25 21 14 20 9 2 . . . 9 7 13 11 11 13 13 12 . . 17 23 23 20 8 9 17 19 10 Naked Turns 5 | . . . . . . . . . . . . . . . . . . . . . . . . . . . . 5 Heaviest Build 172 | 14 75 75 90 92 163 133 128 129 121 127 126 126 146 134 131 138 140 149 166 170 163 169 172 162 172 161 166 170 Greatest Support 140 | 40 40 10 10 20 46 51 28 28 28 28 56 98 98 28 28 28 28 98 86 110 110 110 108 110 110 108 140 140 Greatest Overweight (x) 47 | . 7 7 8 9 10 5 4 4 4 4 3 5 4 6 4 4 4 5 5 5 1 1 5 3 2 1 1 47 Average Overweight (x) 3 | . 2 7 7 7 2 3 4 4 4 4 2 1 1 4 4 4 4 3 4 1 1 1 1 . 1 1 1 1 Largest Inventory Capacity 40 | 6 20 20 24 24 40 28 28 28 28 28 28 28 28 28 28 28 28 28 28 28 28 28 28 28 28 28 28 36 Average Capacity 26 | 5 18 20 22 24 26 28 28 28 28 28 28 28 28 28 28 28 28 28 28 28 28 28 28 28 28 28 28 27 Most Carried 28 | 6 20 20 22 24 28 28 28 28 28 28 28 27 28 28 28 28 28 28 28 28 28 28 25 27 28 28 28 28 Average Carried 25 | 4 15 19 19 22 24 27 27 27 28 27 26 25 25 27 28 27 27 27 27 27 27 27 23 23 23 24 27 19 Final Capacity 28 | 6 20 20 24 24 28 28 28 28 28 28 28 28 28 28 28 28 28 28 28 28 28 28 28 28 28 28 28 4 Final Carried 28 | 6 19 20 22 24 28 28 28 28 28 27 25 27 28 28 28 28 28 28 28 28 28 25 22 23 15 26 28 4 Class Distribution -------------------- 58% | Hauler-Mutant 13% | Scavenger-Gunner 5% | Scavenger-Tank 5% | Hauler-Skirmisher 3% | Scavenger-Mutant 3% | Hauler-Tank Dominant Class ---------------- Hauler-Mutant | -10/Materials Hauler-Mutant | -10/Mines Hauler-Mutant | -10/Exiles Hauler-Mutant | -9/Mines Hauler-Mutant | -8/Materials Hauler-Mutant | -7/Factory Hauler-Assassin | -7/Lower Caves Hauler-Mutant | -7/Lower Caves Hauler-Mutant | -7/Data Miner Hauler-Mutant | -6/Proximity Caves Hauler-Mutant | -6/Factory Hauler-Mutant | -6/Waste Hauler-Mutant | -6/Factory Hauler-Mutant | -6/Lower Caves Hauler-Mutant | -6/Lower Caves Hauler-Mutant | -6/Zion Hauler-Mutant | -5/Proximity Caves Hauler-Skirmisher | -5/Factory Hauler-Skirmisher | -5/Extension Scavenger-Tank | -5/Cetus Scavenger-Tank | -5/Archives Scavenger-Tank | -5/Hub_04(d) Scavenger-Gunner | -4/Factory Scavenger-Mutant | -4/Waste Scavenger-Gunner | -4/Factory Scavenger-Gunner | -4/Armory Scavenger-Gunner | -3/Research Scavenger-Mutant | -3/Testing Resources | -11 -10 -10 -10 -9 -8 -7 -7 -7 -7 -6 -6 -6 -6 -6 -6 -6 -5 -5 -5 -5 -5 -5 -4 -4 -4 -4 -3 -3 ----------- Run | Scr Mat Min Exi Min Mat Fac Low Low Dat Pro Fac Was Fac Low Low Zio Pro Fac Ext Cet Arc Hub Fac Was Fac Arm Res Tes Matter Collected 15919 | 276 542 57 . 215 1267 699 186 120 . 525 452 214 570 217 45 45 245 247 283 734 950 763 769 719 1332 1725 681 2041 Remotely 114 | 114 . . . . . . . . . . . . . . . . . . . . . . . . . . . . Salvage Created 20799 | 81 865 212 . 193 2195 1298 79 206 . 270 607 214 892 254 . . 116 1109 1384 769 780 1319 363 1100 1039 731 1817 2906 Parts 987 | 6 53 8 . 17 113 58 3 7 . 19 38 3 41 12 . . 13 62 63 45 55 62 25 17 52 28 98 89 Haulers Intercepted 10 | . 2 . . . 5 1 . . . . . . . . . . . . 1 . . . . . . . 1 . Recyclers Shooed 6 | . 1 . . . . 3 . . . . . . 1 . . . . . . . . . . . . . . 1 Parts Field Recycled . | . . . . . . . . . . . . . . . . . . . . . . . . . . . . . Retrieved Matter . | . . . . . . . . . . . . . . . . . . . . . . . . . . . . . Parts Self-Destructed 70 | . . . . . . . 1 5 . 35 . . . 9 . . 20 . . . . . . . . . . . Prevented 6 | . . . . . . . . 3 . 1 . . . . . . 2 . . . . . . . . . . . Kills | -11 -10 -10 -10 -9 -8 -7 -7 -7 -7 -6 -6 -6 -6 -6 -6 -6 -5 -5 -5 -5 -5 -5 -4 -4 -4 -4 -3 -3 ------- Run | Scr Mat Min Exi Min Mat Fac Low Low Dat Pro Fac Was Fac Low Low Zio Pro Fac Ext Cet Arc Hub Fac Was Fac Arm Res Tes Combat Hostiles Destroyed 277 | . 17 4 . 6 38 14 2 5 . 5 7 1 9 6 . . 7 11 14 9 4 15 7 4 26 12 19 35 Melee 2 | . . . . . . . . . . . . . . . . . . . . . . . . 1 . 1 . . Guns 212 | . 17 1 . 6 29 11 . . . 5 3 1 8 2 . . 2 10 14 9 4 14 7 3 12 11 19 24 Cannons 22 | . . . . . . . . 3 . . 4 . . . . . . . . . . . . . 10 . . 5 AOE 36 | . . 3 . . 9 3 2 2 . . . . . 4 . . 5 . . . . . . . 4 . . 4 Classes Destroyed 25 | 2 6 1 . . 2 1 . . . 1 . 1 . . . . 1 1 2 . . . . . 1 1 1 4 Worker 27 | 1 . 2 . . 4 3 . . . . . . 1 . . . . 2 . . . 5 1 . 1 . 4 3 Builder 12 | . 1 . . 1 . 1 . . . . . . . . . . . 1 1 . . 2 . . 2 . 2 1 Tunneler 3 | . . 1 . 1 . . . . . . . . . . . . . . . . . 1 . . . . . . Hauler 10 | . 2 . . . 5 1 . . . . . . . . . . . . 1 . . . . . . . 1 . Recycler 16 | 1 . . . . 2 5 . . . . 1 . 2 . . . . 1 1 . . 2 . . . . . 1 Carrier 1 | . . . . . . . . . . . . . . . . . . . . . . . . . . . . 1 Minesweeper 1 | . . . . . . . . . . . . . . . . . 1 . . . . . . . . . . . Mechanic 2 | . . . . . . . . . . . . . . . . . . . . . . . . . 1 . . 1 Operator 18 | . 1 . . . 3 . . . . . 1 . 1 . . . . 2 . . 9 . . . . . 1 . Watcher 17 | . 1 . . . 3 2 . . . . 2 . . . . . . . . 1 . 2 . . 1 1 3 1 Swarmer 38 | . 2 . . 3 3 . . . . 2 3 . . 1 . . 7 . 1 . . 4 3 . 9 . . . Saboteur 3 | . . . . . . . . . . . . . . . . . . . . . . . . . . 3 . . Grunt 120 | . 15 4 . 3 26 4 2 3 . 2 . . 5 3 . . . 5 7 3 . 6 . . 3 3 6 20 Brawler 4 | . . . . . . . . . . . . . . . . . . . 1 . . . . . . . . 3 Duelist 4 | . . . . . . . . . . 1 . . . 1 . . . . . . . . . . . . . 2 Researcher 2 | . . . . . . . . . . . . . . . . . . . . . . . . . . . . 2 Sentry 39 | . . . . . 7 3 . 1 . . 3 . 1 1 . . . 2 3 . 4 2 1 . 4 3 4 . Hunter 17 | . . . . . 2 1 . 1 . . . . 1 . . . . . 1 1 . 2 . . 3 1 2 2 Programmer 37 | . . . . . . 6 . . . . 1 . 2 . . . . 4 . . . . 3 . 7 2 7 5 Behemoth 1 | . . . . . . . . . . . . . . . . . . . 1 . . . . . . . . . Compactor 5 | . . . . . . . . . . . . 1 . . . . . . . . . . . 4 . . . . Cetus Guard 5 | . . . . . . . . . . . . . . . . . . . . 5 . . . . . . . . Lightning 1 | . . . . . . . . . . . . . . . . . . . . . . 1 . . . . . . Striker 2 | . . . . . . . . . . . . . . . . . . . . . . . . . . . . 2 Alpha 7 1 | . . . . . . . . . . . . . . . . . . . . . . . . . . . . 1 Z-Light 1 | . . . . . . . . . . . . . . . . . . . . . . . . . . . 1 . Z-Heavy 1 | . . . . . . . . . . . . . . . . . . 1 . . . . . . . . . . Thug 2 | . . . . . . . . . . . . . . . . . . . 1 1 . . . . . . . . Best Kill Streak 10 | 1 4 2 . 3 6 5 2 3 . 2 5 1 7 3 . . 5 5 2 4 5 8 3 1 10 4 7 8 Combat Bots Only 8 | . 4 2 . 3 5 3 2 3 . 2 4 1 6 3 . . 5 3 2 4 1 5 3 1 6 4 5 8 Max Kills in Single Turn 4 | 1 1 2 . 2 4 3 1 1 . 1 2 1 2 2 . . 3 3 2 1 1 3 1 1 2 2 2 3 Gunslinging 1 | . . . . 1 . . . . . . . . . . . . . . . . . 1 . . . 1 1 1 Exploded 4 | . . 2 . . 4 2 1 1 . . . . . 2 . . 3 . . . . . . . 1 . . 2 Melee 1 | . . . . . . . . . . . . . . . . . . . . . . . . 1 . 1 . . Uniques/NPCs Destroyed . | . . . . . . . . . . . . . . . . . . . . . . . . . . . . . Combat | -11 -10 -10 -10 -9 -8 -7 -7 -7 -7 -6 -6 -6 -6 -6 -6 -6 -5 -5 -5 -5 -5 -5 -4 -4 -4 -4 -3 -3 -------- Run | Scr Mat Min Exi Min Mat Fac Low Low Dat Pro Fac Was Fac Low Low Zio Pro Fac Ext Cet Arc Hub Fac Was Fac Arm Res Tes Damage Taken 31112 | . 852 100 . 315 2750 1004 134 249 . 562 1639 110 963 362 . . 271 979 472 814 732 2746 507 471 4462 1891 1157 7570 Core 3705 | . 140 . . 42 275 89 20 20 . 45 262 10 141 33 . . 93 20 45 . 115 216 46 260 213 303 75 1242 Absorbed by Shields 1127 | . . . . . 155 . . . . . . . 48 . . . . . 207 . . . . . . 717 . . Core Remaining (%) 53 | 100 . . . 27 50 . . . . 75 . . . . . . 36 . . . . 60 . . . 28 . . Volleys Fired 921 | 2 76 8 . 22 146 58 5 13 . 19 30 5 38 14 . . 16 23 36 32 46 40 17 27 59 43 41 105 Largest 4 | 2 2 2 . 2 2 2 1 2 . 2 2 2 2 2 . . 2 1 1 4 4 4 4 4 4 4 4 4 Hottest 250 | 70 70 40 . 43 122 116 69 138 . 83 97 58 69 71 . . 63 250 250 250 138 140 140 140 200 135 138 200 Shots Fired 2260 | 4 152 11 . 44 278 100 5 17 . 38 57 10 71 27 1 . 26 23 38 120 183 160 66 61 193 152 164 259 Gun 2045 | 4 152 9 . 44 264 94 . . . 38 48 10 66 21 1 . 20 23 36 112 183 160 66 57 98 150 164 225 Cannon 165 | . . . . . 3 . 3 13 . . 9 . 5 . . . . . . 8 . . . . 88 2 . 34 Launcher 49 | . . 2 . . 11 5 2 4 . . . . . 6 . . 6 . 2 . . . . 4 7 . . . Special 1 | . . . . . . 1 . . . . . . . . . . . . . . . . . . . . . . Kinetic 1911 | 2 139 9 . 44 177 35 . . . 34 43 10 66 21 1 . 20 . . 117 183 160 66 57 186 152 164 225 Thermal 236 | 2 13 . . . 90 49 . . . . . . . . . . . 23 36 3 . . . . . . . 20 Explosive 46 | . . 2 . . 11 5 2 4 . . . . . 6 . . 6 . 2 . . . . 2 6 . . . Electromagnetic 66 | . . . . . . 10 3 13 . 4 14 . 5 . . . . . . . . . . 2 1 . . 14 Robot Hit Streak 33 | 2 9 10 . 12 26 17 3 7 . 7 10 8 10 14 2 . 5 7 6 17 18 11 10 33 23 30 29 22 Robot Miss Streak 18 | 1 3 1 . 4 4 3 1 3 . 13 8 4 6 6 2 . 4 7 18 7 3 3 4 1 3 4 3 3 Penetration Max 2 | . . . . . . . . . . . . . 1 . . . . . . 1 1 2 . 1 1 1 1 1 Secondary Targets 27 | . . . . 1 2 . . . . 1 . . . . . . . . . 1 . 2 2 . . 5 4 9 Max Gunslinging Chain 2 | . . . . 1 1 . . . . 1 . . . . . . . . . 1 . 1 1 . . 2 1 1 Capacitor 31 | . . . . . . . . . . . . . . . . . . . . . . . . . . . . 31 Shots Hit Robots 1632 | 2 95 7 . 34 199 80 3 8 . 27 45 7 61 20 1 . 9 22 36 89 120 101 35 61 124 110 124 212 Core Hits 923 | 3 39 10 . 12 108 62 3 9 . 23 39 7 49 20 1 . 16 42 73 37 37 51 13 12 59 32 65 101 Critical Hits 147 | . 1 . . . 2 . . . . . 3 1 1 1 . . . . . 8 20 10 3 12 16 20 16 33 Critical Kills 39 | . . . . . 1 . . . . . 1 . 1 . . . . . . 3 3 6 2 1 5 4 7 5 Critical Parts Destroyed 84 | . 1 . . . 1 . . . . . 2 1 . 1 . . . . . 5 10 4 1 2 10 15 9 22 Melee Attacks 109 | . . . . . . 22 33 24 . . 8 . 6 . . . . . . . . . . 5 3 2 . 6 Impact 81 | . . . . . . 11 33 24 . . 7 . 6 . . . . . . . . . . . . . . . Slashing 26 | . . . . . . 11 . . . . . . . . . . . . . . . . . 5 3 2 . 5 Piercing 1 | . . . . . . . . . . . . . . . . . . . . . . . . . . . . 1 Sneak Attacks 7 | . . . . . . 2 . . . . 1 . 2 . . . . . . . . . . . . . . 2 Combat Hostiles . | . . . . . . . . . . . . . . . . . . . . . . . . . . . . . Follow-up Attacks . | . . . . . . . . . . . . . . . . . . . . . . . . . . . . . Damage Inflicted 50465 | 37 1163 243 . 440 3832 2388 343 502 . 574 1185 218 1416 514 28 . 891 1769 3025 2318 2872 3318 1058 1776 4564 3048 3558 9385 Guns 38049 | 37 1163 105 . 440 3107 1448 . . . 574 842 218 1165 209 28 . 213 1769 3025 2118 2872 2543 1058 1442 2050 2955 3558 5110 Cannons 4375 | . . . . . . . 92 187 . . 246 . 121 . . . . . . 200 . . . . 1711 93 . 1725 Explosions 7116 | . . 138 . . 719 738 251 315 . . 97 . . 305 . . 678 . . . . 750 . 232 803 . . 2090 Melee 894 | . . . . . . 202 . . . . . . 130 . . . . . . . . . . 102 . . . 460 Ramming 31 | . . . . . 6 . . . . . . . . . . . . . . . . 25 . . . . . . Kinetic 32548 | 12 1036 105 . 440 1880 548 . . . 504 783 218 1165 209 28 . 213 . . 2015 2872 2543 1058 1442 3761 3048 3558 5110 Thermal 10442 | 25 127 . . . 1227 719 . . . . . . . . . . . 1769 3025 303 . . . . . . . 3247 Explosive 4107 | . . 138 . . 719 738 251 315 . . 97 . . 305 . . 678 . . . . . . 228 638 . . . Electromagnetic 2443 | . . . . . . 181 92 187 . 70 305 . 121 . . . . . . . . 750 . 4 165 . . 568 Impact 332 | . . . . . . 202 . . . . . . 130 . . . . . . . . . . . . . . . Slashing 403 | . . . . . . . . . . . . . . . . . . . . . . . . 102 . . . 301 Piercing 159 | . . . . . . . . . . . . . . . . . . . . . . . . . . . . 159 Highest Corruption 53 | . . . . . . 2 2 . . . 3 3 6 6 6 6 . 4 5 5 5 19 2 34 45 53 3 30 Average Corruption 10 | . . . . . . 1 1 . . . 2 3 4 6 6 6 . 2 4 5 4 4 1 17 37 46 2 10 Corruption Purged 7 | . . . . . . . 2 . . . . . . . . . . . . . 5 . . . . . . . Effects 685 | . . . . . . 18 9 . . . 3 4 46 15 20 3 . 9 37 20 23 14 3 25 198 163 8 67 Message Errors 91 | . . . . . . 6 1 . . . . 2 10 4 7 1 . 2 12 2 1 2 2 . 20 17 1 1 Matter Fused 80 | . . . . . . . . . . . . . 12 5 2 . . 2 7 4 3 1 . 4 12 18 . 10 Heat Flow Errors 49 | . . . . . . 4 1 . . . . . 4 2 1 2 . . 2 1 4 1 . 4 9 7 1 6 Energy Discharges 61 | . . . . . . . 3 . . . 2 . 7 2 4 . . 3 7 1 2 1 . 1 12 8 3 5 Parts Rejected 6 | . . . . . . . . . . . . . 1 . . . . . . 1 . . . 1 2 1 . . Data Loss (minor) 47 | . . . . . . 5 . . . . . 2 5 . 4 . . 2 6 4 3 . 1 1 7 5 1 1 Data Loss (major) 19 | . . . . . . . . . . . . . 2 . 1 . . . 1 1 . . . 2 5 4 . 3 Misfires 15 | . . . . . . . . . . . . . . . 1 . . . 2 1 . . . . 2 5 . 4 Alerts 4 | . . . . . . . . . . . . . . . . . . . . . . . . . 1 . . 3 Misdirections 60 | . . . . . . . . . . . . . . . . . . . . . . 1 . 2 31 19 . 7 Targeting Errors 213 | . . . . . . 3 4 . . . 1 . 5 1 . . . . . 5 9 8 . 9 79 67 2 20 Weapon Failures 40 | . . . . . . . . . . . . . . 1 . . . . . . 1 . . 1 18 12 . 7 Overload Shots . | . . . . . . . . . . . . . . . . . . . . . . . . . . . . . Overflow Damage 1006 | . . . . . . 110 70 . . . 44 . 35 2 . . 22 . . . . 118 . 16 60 11 . 518 Projectiles 217 | . . . . . . . 26 . . . 44 . . . . . . . . . . . . . 7 11 . 129 Explosions 611 | . . . . . . 23 44 . . . . . . 2 . . 22 . . . . 118 . 16 53 . . 333 Melee 178 | . . . . . . 87 . . . . . . 35 . . . . . . . . . . . . . . 56 Knockbacks 13 | . . . . . . 2 . . . . . . 1 . . . . . . 1 . . . . 8 1 . . Impact 3 | . . . . . . 2 . . . . . . 1 . . . . . . . . . . . . . . . Kinetic 10 | . . . . . . . . . . . . . . . . . . . . 1 . . . . 8 1 . . Secondary . | . . . . . . . . . . . . . . . . . . . . . . . . . . . . . Self-Inflicted Damage 788 | . . 19 . . 91 47 . 25 . . 88 . . 41 . . . . . . . 98 . 58 97 . . 224 Shots 19 | . . 1 . . 3 1 . 1 . . 2 . . 2 . . . . . . . 1 . 2 2 . . 4 Rammed 5 | . . . . . 3 . . . . . . . . . . . . . . . . 2 . . . . . . Targets Rammed 5 | . . . . . 3 . . . . . . . . . . . . . . . . 2 . . . . . . Kicked . | . . . . . . . . . . . . . . . . . . . . . . . . . . . . . Crushed . | . . . . . . . . . . . . . . . . . . . . . . . . . . . . . Highest Temperature 441 | 9 141 5 . 4 409 391 142 149 . 36 68 14 238 216 191 232 57 432 441 104 381 82 54 232 409 361 118 399 Average Temperature 82 | 6 53 3 . 2 93 114 47 55 . 17 20 6 43 49 89 99 20 125 109 32 85 30 30 97 116 88 31 88 Received Heat Transfer 5775 | . 351 45 . 162 1224 276 39 66 . 120 498 . 194 93 . . 36 165 107 87 36 216 27 . 567 302 84 1080 Effects 14 | . . . . . 3 1 . . . . . . . . . . . . 3 . 1 . . . 3 . . 3 Shutdowns 2 | . . . . . 1 . . . . . . . . . . . . . 1 . . . . . . . . . Energy Bleed 4 | . . . . . 1 1 . . . . . . . . . . . . . . . . . . 2 . . . Interference 5 | . . . . . . . . . . . . . . . . . . . 2 . . . . . . . . 3 Matter Decay 1 | . . . . . . . . . . . . . . . . . . . . . 1 . . . . . . . Short Circuit 1 | . . . . . 1 . . . . . . . . . . . . . . . . . . . . . . . Damage (minor) 1 | . . . . . . . . . . . . . . . . . . . . . . . . . 1 . . . Siege Activations . | . . . . . . . . . . . . . . . . . . . . . . . . . . . . . Robots Corrupted 3 | . . . . . . . . . . . . . 1 . . . . . . . . 1 . . . . . 1 Combat Hostiles 3 | . . . . . . . . . . . . . 1 . . . . . . . . 1 . . . . . 1 Parts Fried 31 | . . . . . . 2 . 2 . . 5 . 4 . . . . 4 2 . . 7 . . . . . 5 Impact Corruptions 4 | . . . . . . 3 . . . . . . 1 . . . . . . . . . . . . . . . Robots Melted 1 | . . . . . . . . . . . . . . . . . . . . . . . . . . . . 1 Combat Hostiles 1 | . . . . . . . . . . . . . . . . . . . . . . . . . . . . 1 Parts Melted 39 | . . . . . 4 2 . . . . . . . . . . . 12 18 1 . . . . . 1 . 1 Heat Transferred 14134 | 74 370 . . . 2664 1406 . . . . . . . . . . . 2475 4136 450 . . . . . . . 2559 Parts Sabotaged 4 | . . . . . . . . . . . 4 . . . . . . . . . . . . . . . . . Parts Stolen . | . . . . . . . . . . . . . . . . . . . . . . . . . . . . . Parts Stripped . | . . . . . . . . . . . . . . . . . . . . . . . . . . . . . Power Chain Reactions 1 | . . . . . . . . . . . . . . . . . . . . . . . . . . . . 1 Missiles Intercepted . | . . . . . . . . . . . . . . . . . . . . . . . . . . . . . Alert | -11 -10 -10 -10 -9 -8 -7 -7 -7 -7 -6 -6 -6 -6 -6 -6 -6 -5 -5 -5 -5 -5 -5 -4 -4 -4 -4 -3 -3 ------- Run | Scr Mat Min Exi Min Mat Fac Low Low Dat Pro Fac Was Fac Low Low Zio Pro Fac Ext Cet Arc Hub Fac Was Fac Arm Res Tes Peak Influence 1138 | 10 219 138 . 70 484 275 . . . . 526 208 467 . . . . 310 419 385 365 907 754 245 960 871 856 1138 Initial 481 | . 6 43 . . 3 219 . . . . . 171 145 . . . . 77 96 187 104 4 434 237 135 459 398 481 Average 270 | 2 105 48 . 30 213 125 . . . . 332 196 118 . . . . 154 218 269 208 375 594 203 315 629 530 859 Maximum Alert Level 4 | . 1 . . . 2 1 . . . . 2 1 2 . . . . 1 2 1 1 3 3 1 3 3 3 4 Low Security (%) 52 | 100 93 100 . 100 45 75 . . . . 26 37 83 . . . . 78 38 24 60 34 . 63 54 . . . Level 1 20 | . 6 . . . 38 24 . . . . 6 62 10 . . . . 21 54 75 39 27 . 36 5 7 9 . Level 2 18 | . . . . . 16 . . . . . 67 . 5 . . . . . 6 . . 14 83 . 27 50 73 19 Level 3 8 | . . . . . . . . . . . . . . . . . . . . . . 23 16 . 12 42 17 76 Level 4 . | . . . . . . . . . . . . . . . . . . . . . . . . . . . . 3 Level 5 . | . . . . . . . . . . . . . . . . . . . . . . . . . . . . . High Security . | . . . . . . . . . . . . . . . . . . . . . . . . . . . . . Max Security . | . . . . . . . . . . . . . . . . . . . . . . . . . . . . . Squads Dispatched 80 | . 6 . . . 5 7 . . . . 6 . 3 . . . . 5 2 . . 4 4 . 8 4 9 17 Investigation 11 | . 3 . . . 1 1 . . . . . . 1 . . . . . . . . . 1 . . . 2 2 Extermination 26 | . . . . . . 5 . . . . 2 . 1 . . . . 2 . . . 1 3 . 4 3 2 3 Reinforcement 23 | . 3 . . . 4 . . . . . 2 . 1 . . . . . 2 . . 3 . . 2 . 1 5 Assault 13 | . . . . . . . . . . . 2 . . . . . . . . . . . . . 2 1 1 7 Garrison 7 | . . . . . . 1 . . . . . . . . . . . 3 . . . . . . . . 3 . Intercept . | . . . . . . . . . . . . . . . . . . . . . . . . . . . . . Construction Impeded 4 | . . . . . . . . . . . . . . . . . . . 1 . . 1 . . 1 . 1 . Haulers Reinforced 1 | . . . . . . . . . . . . . . . . . . . . . . 1 . . . . . . Stealth | -11 -10 -10 -10 -9 -8 -7 -7 -7 -7 -6 -6 -6 -6 -6 -6 -6 -5 -5 -5 -5 -5 -5 -4 -4 -4 -4 -3 -3 --------- Run | Scr Mat Min Exi Min Mat Fac Low Low Dat Pro Fac Was Fac Low Low Zio Pro Fac Ext Cet Arc Hub Fac Was Fac Arm Res Tes Distress Signals 16 | . 1 . . . 2 1 . . . . 1 . . . . . . . 1 2 1 . . . 1 1 1 4 Communications Jammed . | . . . . . . . . . . . . . . . . . . . . . . . . . . . . . Distress Signals . | . . . . . . . . . . . . . . . . . . . . . . . . . . . . . Times Spotted 568 | . 36 5 . 11 67 25 4 8 . 9 36 7 16 6 . . 14 18 34 16 25 32 13 6 44 32 29 75 Peak Tracking Total 13 | . 3 2 . 12 7 4 3 3 . 3 13 5 4 3 . . 5 4 5 5 1 8 6 4 8 7 5 12 Tactical Retreats 31 | . . 1 . . . 1 2 3 . 1 2 1 . . . . 1 1 1 . . 4 . . 5 3 . 5 Traps | -11 -10 -10 -10 -9 -8 -7 -7 -7 -7 -6 -6 -6 -6 -6 -6 -6 -5 -5 -5 -5 -5 -5 -4 -4 -4 -4 -3 -3 ------- Run | Scr Mat Min Exi Min Mat Fac Low Low Dat Pro Fac Was Fac Low Low Zio Pro Fac Ext Cet Arc Hub Fac Was Fac Arm Res Tes Traps Triggered 18 | . 2 . . . . 4 . . . . 1 . 2 . . . . 3 1 . . 1 2 . . . 1 1 Indirectly 1 | . . . . . . . . . . . . . . . . . . . . . . 1 . . . . . . Trap Hack Attempts . | . . . . . . . . . . . . . . . . . . . . . . . . . . . . . Triggered . | . . . . . . . . . . . . . . . . . . . . . . . . . . . . . Disarmed . | . . . . . . . . . . . . . . . . . . . . . . . . . . . . . Reprogrammed . | . . . . . . . . . . . . . . . . . . . . . . . . . . . . . Reused 2 | . . . . . . 1 . . . . . . . . . . . 1 . . . . . . . . . . Traps Extracted . | . . . . . . . . . . . . . . . . . . . . . . . . . . . . . Installed 4 | . . . . 2 . 1 . . . . . . . . . . . 1 . . . . . . . . . . Triggered 5 | . . . . . . 1 . . . . 2 . . . . . 1 1 . . . . . . . . . . Machines | -11 -10 -10 -10 -9 -8 -7 -7 -7 -7 -6 -6 -6 -6 -6 -6 -6 -5 -5 -5 -5 -5 -5 -4 -4 -4 -4 -3 -3 ---------- Run | Scr Mat Min Exi Min Mat Fac Low Low Dat Pro Fac Was Fac Low Low Zio Pro Fac Ext Cet Arc Hub Fac Was Fac Arm Res Tes Machines Disabled 69 | . . 1 . . 4 . . . . . 3 . 1 . . . . . 1 1 5 15 6 . 14 6 2 10 Max in Single Turn 9 | . . 1 . . 1 . . . . . 2 . 1 . . . . . . . 2 9 5 . 4 1 1 2 Garrison Access 4 | . . . . . 1 2 . . . . . . 1 . . . . . . . . . . . . . . . Network Hub 1 | . . . . . . . . . . . . . . . . . . . . . . 1 . . . . . . Energy Cycler 1 | . . . . . . . . . . . . . . . . . . . . . . . . . . 1 . . Machines Sabotaged . | . . . . . . . . . . . . . . . . . . . . . . . . . . . . . Garrisons Compromised . | . . . . . . . . . . . . . . . . . . . . . . . . . . . . . Overloaded Fab Kills . | . . . . . . . . . . . . . . . . . . . . . . . . . . . . . Fab Network Shutdowns 2 | . . . . . . . . . . . 1 . 1 . . . . . . . . . . . . . . . Hacking | -11 -10 -10 -10 -9 -8 -7 -7 -7 -7 -6 -6 -6 -6 -6 -6 -6 -5 -5 -5 -5 -5 -5 -4 -4 -4 -4 -3 -3 --------- Run | Scr Mat Min Exi Min Mat Fac Low Low Dat Pro Fac Was Fac Low Low Zio Pro Fac Ext Cet Arc Hub Fac Was Fac Arm Res Tes Machines Accessed 65 | . 4 . 1 . 12 12 1 . 4 . 5 . 14 . . . . . . . . 1 3 . 4 1 1 2 Terminals 26 | . 2 . . . 7 5 . . . . 2 . 10 . . . . . . . . . . . . . . . Fabricators 7 | . . . . . . 3 . . . . 1 . 2 . . . . . . . . . . . 1 . . . Repair Stations 13 | . 1 . . . 2 2 . . . . 1 . . . . . . . . . . . 3 . 2 1 . 1 Recycling Units 1 | . 1 . . . . . . . . . . . . . . . . . . . . . . . . . . . Scanalyzers 5 | . . . . . 2 . . . . . 1 . 1 . . . . . . . . . . . . . . 1 Garrison Access 7 | . . . . . 1 2 . . . . . . 1 . . . . . . . . 1 . . 1 . 1 . Total Hacks 222 | . 17 . 1 . 48 32 1 . 26 . 12 . 35 . . . . . . . . 3 22 . 10 3 3 9 Successful 144 | . 12 . 1 . 28 21 1 . 26 . 8 . 22 . . . . . . . . . 16 . 4 1 . 4 Failed 78 | . 5 . . . 20 11 . . . . 4 . 13 . . . . . . . . 3 6 . 6 2 3 5 Catastrophic 8 | . 1 . . . 1 1 . . . . 1 . 2 . . . . . . . . . . . 2 . . . Database Lockouts . | . . . . . . . . . . . . . . . . . . . . . . . . . . . . . Manual 149 | . 5 . . . 14 11 . . . . 3 . 18 . . . . 13 33 5 . 9 5 . 8 12 10 3 Terminals 87 | . 7 . . . 30 17 . . . . 7 . 26 . . . . . . . . . . . . . . . Fabricators 13 | . . . . . . 6 . . . . 1 . 5 . . . . . . . . . . . 1 . . . Repair Stations 59 | . 9 . . . 10 5 . . . . 2 . . . . . . . . . . . 22 . 6 3 . 2 Recycling Units 1 | . 1 . . . . . . . . . . . . . . . . . . . . . . . . . . . Scanalyzers 18 | . . . . . 7 . . . . . 2 . 2 . . . . . . . . . . . . . . 7 Garrison Access 16 | . . . . . 1 4 . . . . . . 2 . . . . . . . . 3 . . 3 . 3 . Terminal Hacks 66 | . 4 . 1 . 12 6 1 . 26 . 4 . 12 . . . . . . . . . . . . . . . Record 14 | . . . 1 . 1 . . . 11 . . . 1 . . . . . . . . . . . . . . . Part Schematic 7 | . 1 . . . . . . . 6 . . . . . . . . . . . . . . . . . . . Robot Schematic 6 | . . . . . . . . . 6 . . . . . . . . . . . . . . . . . . . Prototype ID Bank 4 | . . . . . 1 . . . 3 . . . . . . . . . . . . . . . . . . . Open Door 1 | . . . . . . . 1 . . . . . . . . . . . . . . . . . . . . . Branch Access Points 4 | . . . . . . 1 . . . . 1 . 2 . . . . . . . . . . . . . . . Emergency Access Points 5 | . 1 . . . 1 2 . . . . . . 1 . . . . . . . . . . . . . . . Machine Index 1 | . . . . . . . . . . . . . 1 . . . . . . . . . . . . . . . Terminal Index 3 | . . . . . . 1 . . . . 1 . 1 . . . . . . . . . . . . . . . Fabricator Index 2 | . . . . . . 1 . . . . . . 1 . . . . . . . . . . . . . . . Garrison Index 1 | . . . . . . 1 . . . . . . . . . . . . . . . . . . . . . . Alert Level 1 | . . . . . 1 . . . . . . . . . . . . . . . . . . . . . . . Unreport Threat 4 | . . . . . 2 . . . . . . . 2 . . . . . . . . . . . . . . . Locate Traps 7 | . 1 . . . 3 . . . . . 1 . 2 . . . . . . . . . . . . . . . Recall Investigation 1 | . . . . . 1 . . . . . . . . . . . . . . . . . . . . . . . Recall Extermination 1 | . . . . . . . . . . . 1 . . . . . . . . . . . . . . . . . Recall Reinforcements 1 | . . . . . . . . . . . . . 1 . . . . . . . . . . . . . . . Hauler Manifests 1 | . 1 . . . . . . . . . . . . . . . . . . . . . . . . . . . Zone Layout 2 | . . . . . 2 . . . . . . . . . . . . . . . . . . . . . . . Fabricator Hacks 10 | . . . . . . 6 . . . . 1 . 3 . . . . . . . . . . . . . . . Load Schematic 5 | . . . . . . 3 . . . . . . 2 . . . . . . . . . . . . . . . Build 5 | . . . . . . 3 . . . . 1 . 1 . . . . . . . . . . . . . . . Repair Station Hacks 41 | . 7 . . . 7 4 . . . . 2 . . . . . . . . . . . 16 . 4 1 . . Scan Component 23 | . 4 . . . 4 3 . . . . 1 . . . . . . . . . . . 8 . 2 1 . . Repair 18 | . 3 . . . 3 1 . . . . 1 . . . . . . . . . . . 8 . 2 . . . Recycling Unit Hacks . | . . . . . . . . . . . . . . . . . . . . . . . . . . . . . Scanalyzer 12 | . . . . . 6 . . . . . 1 . 1 . . . . . . . . . . . . . . 4 Insert Component 6 | . . . . . 3 . . . . . 1 . 1 . . . . . . . . . . . . . . 1 Analyze 6 | . . . . . 3 . . . . . . . . . . . . . . . . . . . . . . 3 Garrison Access Hacks 4 | . . . . . 1 2 . . . . . . 1 . . . . . . . . . . . . . . . Seal Access 4 | . . . . . 1 2 . . . . . . 1 . . . . . . . . . . . . . . . Unauthorized Hacks 11 | . 1 . . . 2 3 . . . . . . 5 . . . . . . . . . . . . . . . Terminals 9 | . . . . . 2 3 . . . . . . 4 . . . . . . . . . . . . . . . Track 5 | . . . . . 2 1 . . . . . . 2 . . . . . . . . . . . . . . . Botnet 2 | . . . . . . 1 . . . . . . 1 . . . . . . . . . . . . . . . Operators 2 | . . . . . . 1 . . . . . . 1 . . . . . . . . . . . . . . . Fabricators 1 | . . . . . . . . . . . . . 1 . . . . . . . . . . . . . . . Prioritize 1 | . . . . . . . . . . . . . 1 . . . . . . . . . . . . . . . Repair Stations . | . . . . . . . . . . . . . . . . . . . . . . . . . . . . . Recycling Units 1 | . 1 . . . . . . . . . . . . . . . . . . . . . . . . . . . Tunnel 1 | . 1 . . . . . . . . . . . . . . . . . . . . . . . . . . . Scanalyzers . | . . . . . . . . . . . . . . . . . . . . . . . . . . . . . Garrison Access . | . . . . . . . . . . . . . . . . . . . . . . . . . . . . . Data Cores Recovered . | . . . . . . . . . . . . . . . . . . . . . . . . . . . . . Used . | . . . . . . . . . . . . . . . . . . . . . . . . . . . . . Hacking Detections 52 | . 3 . . . 11 10 . . . . 4 . 13 . . . . . . . . 1 3 . 3 1 1 2 Full Trace Events 3 | . . . . . 1 . . . . . . . 1 . . . . . . . . . . . . . 1 . Feedback Events . | . . . . . . . . . . . . . . . . . . . . . . . . . . . . . Feedback Blocked . | . . . . . . . . . . . . . . . . . . . . . . . . . . . . . Robot Schematics Acquired 14 | . . . . . . . . . 6 . . . . . . . . . 8 . . . . . . . . . Robots Built . | . . . . . . . . . . . . . . . . . . . . . . . . . . . . . Matter . | . . . . . . . . . . . . . . . . . . . . . . . . . . . . . Time . | . . . . . . . . . . . . . . . . . . . . . . . . . . . . . Total Robot Build Rating . | . . . . . . . . . . . . . . . . . . . . . . . . . . . . . Part Schematics Acquired 31 | . 1 . . . 2 . . . 6 . . . . . . . . . 11 . . 11 . . . . . . Parts Built 7 | . . . . . . 5 . . . . 1 . 1 . . . . . . . . . . . . . . . Matter 847 | . . . . . . 350 . . . . 212 . 285 . . . . . . . . . . . . . . . Time 354 | . . . . . . 149 . . . . 53 . 152 . . . . . . . . . . . . . . . Total Part Build Rating 20 | . . . . . . 9 . . . . 6 . 5 . . . . . . . . . . . . . . . Parts Repaired 17 | . 3 . . . 3 1 . . . . 1 . . . . . . . . . . . 8 . 1 . . . Time 823 | . 78 . . . 84 26 . . . . 61 . . . . . . . . . . . 475 . 99 . . . Parts Recycled . | . . . . . . . . . . . . . . . . . . . . . . . . . . . . . Recycled Matter . | . . . . . . . . . . . . . . . . . . . . . . . . . . . . . Retrieved Matter . | . . . . . . . . . . . . . . . . . . . . . . . . . . . . . Retrieved Components . | . . . . . . . . . . . . . . . . . . . . . . . . . . . . . Parts Scanalyzed 4 | . . . . . 2 . . . . . 1 . . . . . . . . . . . . . . . . 1 Part Schematics Acquired 2 | . . . . . 2 . . . . . . . . . . . . . . . . . . . . . . . Parts Damaged . | . . . . . . . . . . . . . . . . . . . . . . . . . . . . . Bothacking | -11 -10 -10 -10 -9 -8 -7 -7 -7 -7 -6 -6 -6 -6 -6 -6 -6 -5 -5 -5 -5 -5 -5 -4 -4 -4 -4 -3 -3 ------------ Run | Scr Mat Min Exi Min Mat Fac Low Low Dat Pro Fac Was Fac Low Low Zio Pro Fac Ext Cet Arc Hub Fac Was Fac Arm Res Tes Used RIF Installer . | . . . . . . . . . . . . . . . . . . . . . . . . . . . . . Robots Hacked 2 | . . . . . . 1 . . . . 1 . . . . . . . . . . . . . . . . . Non-combat 2 | . . . . . . 1 . . . . 1 . . . . . . . . . . . . . . . . . Combat . | . . . . . . . . . . . . . . . . . . . . . . . . . . . . . Robot Hacks Applied 2 | . . . . . . 1 . . . . 1 . . . . . . . . . . . . . . . . . find_chute 2 | . . . . . . 1 . . . . 1 . . . . . . . . . . . . . . . . . Relay Couplers Released . | . . . . . . . . . . . . . . . . . . . . . . . . . . . . . Robots Rewired 11 | . . . . . . . . . . . . . . . . . . . 7 . . . 1 . . 2 . 1 Allies Hacked 2 | . . . . . . . . . . . . . . . . . . . . . . . . . . 1 1 . Hacks Repelled 1 | . . . . . . . . . . . . . . . . . . . . . . . 1 . . . . . Allies | -11 -10 -10 -10 -9 -8 -7 -7 -7 -7 -6 -6 -6 -6 -6 -6 -6 -5 -5 -5 -5 -5 -5 -4 -4 -4 -4 -3 -3 -------- Run | Scr Mat Min Exi Min Mat Fac Low Low Dat Pro Fac Was Fac Low Low Zio Pro Fac Ext Cet Arc Hub Fac Was Fac Arm Res Tes Total Allies 66 | . . . . . . . . . . 1 . 18 . . . 4 . 3 19 . . . 3 2 5 7 3 1 Largest Group 18 | . . . . . . . . . . 1 . 18 18 . . 4 4 5 9 8 . . 2 2 3 4 3 . Highest-Rated Group 650 | . . . . . . . . . . 94 . 650 650 . . 151 151 281 368 348 . . 206 206 167 387 288 . Highest-Rated Ally 156 | . . . . . . . . . . 94 . 50 50 . . 40 40 85 156 136 . . 103 103 70 103 96 . Zionite Dispatches 12 | . . . . . . . . . . . . . . . . . . 2 1 . . . 2 . 3 3 1 . Heavy 4 | . . . . . . . . . . . . . . . . . . 1 . . . . 1 . . 2 . . Light 1 | . . . . . . . . . . . . . . . . . . . . . . . . . . . 1 . Recon 1 | . . . . . . . . . . . . . . . . . . . . . . . 1 . . . . . Fire 1 | . . . . . . . . . . . . . . . . . . . 1 . . . . . . . . . Hacker 1 | . . . . . . . . . . . . . . . . . . . . . . . . . 1 . . . Demo 1 | . . . . . . . . . . . . . . . . . . . . . . . . . 1 . . . Kinetic Resupply 3 | . . . . . . . . . . . . . . . . . . 1 . . . . . . 1 1 . . Total Orders 19 | . . . . . . . . . . . . . . . . . . 3 7 . . . 4 . 1 . 4 . FOLLOW 2 | . . . . . . . . . . . . . . . . . . . . . . . . . . . 2 . DROP 3 | . . . . . . . . . . . . . . . . . . 1 . . . . . . 1 . 1 . PICKUP 1 | . . . . . . . . . . . . . . . . . . . . . . . . . . . 1 . EXPLORE 8 | . . . . . . . . . . . . . . . . . . . 4 . . . 4 . . . . . RETURN 5 | . . . . . . . . . . . . . . . . . . 2 3 . . . . . . . . . Ally Attacks 505 | . . . . . . . . . . 8 . 99 46 . . . 23 22 129 41 . . 21 19 22 46 29 . Total Damage 16075 | . . . . . . . . . . 249 . 3126 900 . . . 704 1271 2298 761 . . 1163 1347 773 2331 1152 . Kills 81 | . . . . . . . . . . 3 . 5 5 . . . 8 9 15 6 . . 6 3 2 11 8 . Allies Corrupted 5 | . . . . . . . . . . . . . 3 . . . . . . . . . . . . 1 1 . Allies Melted . | . . . . . . . . . . . . . . . . . . . . . . . . . . . . . Intel | -11 -10 -10 -10 -9 -8 -7 -7 -7 -7 -6 -6 -6 -6 -6 -6 -6 -5 -5 -5 -5 -5 -5 -4 -4 -4 -4 -3 -3 ------- Run | Scr Mat Min Exi Min Mat Fac Low Low Dat Pro Fac Was Fac Low Low Zio Pro Fac Ext Cet Arc Hub Fac Was Fac Arm Res Tes Robot Analysis Total . | . . . . . . . . . . . . . . . . . . . . . . . . . . . . . Derelict Logs Recovered 15 | . . 2 . 1 . . 2 2 . 1 . . . 2 2 1 2 . . . . . . . . . . . Drone Launches 12 | . . . . . . . . . . . . . . . . . . 2 6 . . . 4 . . . . . Drone Recoveries 10 | . . . . . . . . . . . . . . . . . . 2 6 . . . 2 . . . . . Zionite Intel Received 14 | . . . . . . . . . . . . . . . . . . 1 8 1 . 2 . . . 1 1 . Emergency Access 1 | . . . . . . . . . . . . . . . . . . . 1 . . . . . . . . . Prototype Stockpiles 1 | . . . . . . . . . . . . . . . . . . . . . . . . . . 1 . . Prototype Schematics 2 | . . . . . . . . . . . . . . . . . . . 1 . . 1 . . . . . . Unaware Schematics 2 | . . . . . . . . . . . . . . . . . . . 2 . . . . . . . . . Unaware Analyses 2 | . . . . . . . . . . . . . . . . . . . 2 . . . . . . . . . Trap Installations 1 | . . . . . . . . . . . . . . . . . . . 1 . . . . . . . . . Active Garrisons 3 | . . . . . . . . . . . . . . . . . . 1 . . . 1 . . . . 1 . Depthwide Sectors/0 1 | . . . . . . . . . . . . . . . . . . . . 1 . . . . . . . . Depthwide Sectors/-1 1 | . . . . . . . . . . . . . . . . . . . 1 . . . . . . . . . Exploration | -11 -10 -10 -10 -9 -8 -7 -7 -7 -7 -6 -6 -6 -6 -6 -6 -6 -5 -5 -5 -5 -5 -5 -4 -4 -4 -4 -3 -3 ------------- Run | Scr Mat Min Exi Min Mat Fac Low Low Dat Pro Fac Was Fac Low Low Zio Pro Fac Ext Cet Arc Hub Fac Was Fac Arm Res Tes Turns Passed 32222 | 110 1807 679 463 1108 3072 2999 1256 971 107 1412 1139 283 1738 596 787 1480 829 1286 1663 578 856 558 937 347 1652 1211 1010 1288 Spaces Moved 16204 | 56 788 425 282 551 1186 1573 814 592 77 951 692 144 913 392 563 1018 411 618 819 243 172 218 386 128 728 550 422 492 Core 14 | 1 . . . . . . . . . . . . . . . . . . . . . . . . . . . 13 Treads 6792 | 55 626 . . 132 1096 496 . . . . 5 112 630 4 . . 199 288 140 214 172 218 386 128 728 550 422 191 Legs 315 | . . . . . 27 . . . . . . . . . . . . . . . . . . . . . . 288 Wheels 9083 | . 162 425 282 419 63 1077 814 592 77 951 687 32 283 388 563 1018 212 330 679 29 . . . . . . . . Hover . | . . . . . . . . . . . . . . . . . . . . . . . . . . . . . Flight . | . . . . . . . . . . . . . . . . . . . . . . . . . . . . . Fastest Speed 50 | 50 150 150 80 160 180 130 140 140 140 140 115 130 140 140 140 140 140 150 140 150 180 180 180 160 180 180 180 50 Average Speed 162 | 158 174 150 155 185 200 157 140 140 140 140 120 174 167 141 140 140 188 180 156 178 180 180 181 178 180 180 180 163 Slowest Speed 2400 | 160 220 150 160 240 270 200 140 140 140 140 180 200 180 280 140 140 240 260 200 200 180 180 260 220 200 180 180 2400 Overloaded Moves . | . . . . . . . . . . . . . . . . . . . . . . . . . . . . . Propulsion Burnouts . | . . . . . . . . . . . . . . . . . . . . . . . . . . . . . Robots Hopped . | . . . . . . . . . . . . . . . . . . . . . . . . . . . . . Cave-ins Triggered . | . . . . . . . . . . . . . . . . . . . . . . . . . . . . . Exploration Rate (%) 57 | 4 91 81 67 99 91 36 87 75 68 88 15 82 28 48 76 89 74 13 86 57 75 21 8 76 16 39 16 52 Regions Visited 28 Branch Regions 17 Pre-discovered Areas 23 | . 1 1 1 . . . . 1 1 . . . . 1 1 1 . . 5 10 . . . . . . . . Known Exits Taken 19 | . . . . . 1 1 1 1 1 1 . . 1 1 1 1 1 1 1 1 1 1 . . 1 1 1 . Unknown Exits Taken 5 | 1 1 1 1 1 . . . . . . . . . . . . . . . . . . . . . . . . Scrap Searched 28 | . . 1 . 2 . . 8 8 . 2 . . . 1 2 2 2 . . . . . . . . . . . Spaces Dug 180 | . . 7 . . 3 17 42 22 . . 6 . 4 . . . 67 . . . . . . . 10 2 . . Terrain Destroyed 1240 | . . 13 . . 100 32 57 69 . . 67 . 4 88 . . 106 . 22 25 40 192 74 37 181 7 51 75 Melee 80 | . . . . . . 17 26 22 . . 6 . 4 . . . . . . . . . . . 3 2 . . Projectile 272 | . . . . . 3 . . . . . . . . . . . . . . 25 40 64 18 13 85 5 10 9 AOE 888 | . . 13 . . 97 15 31 47 . . 61 . . 88 . . 106 . 22 . . 128 56 24 93 . 41 66 Terrain Rammed . | . . . . . . . . . . . . . . . . . . . . . . . . . . . . . Walls Destroyed . | . . . . . . . . . . . . . . . . . . . . . . . . . . . . . Machines Disabled . | . . . . . . . . . . . . . . . . . . . . . . . . . . . . . Actions | -11 -10 -10 -10 -9 -8 -7 -7 -7 -7 -6 -6 -6 -6 -6 -6 -6 -5 -5 -5 -5 -5 -5 -4 -4 -4 -4 -3 -3 --------- Run | Scr Mat Min Exi Min Mat Fac Low Low Dat Pro Fac Was Fac Low Low Zio Pro Fac Ext Cet Arc Hub Fac Was Fac Arm Res Tes Total 20313 | 71 1067 460 307 590 1632 1974 885 693 76 1005 931 168 1062 411 562 1078 449 726 1122 337 639 295 585 191 943 688 572 794 Wait 1742 | . 158 12 . 2 143 175 10 41 . 10 140 3 54 . . 35 3 22 126 . 388 19 125 1 104 3 73 95 Move 16179 | 55 787 424 281 550 1185 1572 813 591 76 950 692 143 912 391 562 1017 410 617 818 242 171 218 386 127 727 549 421 492 Hop . | . . . . . . . . . . . . . . . . . . . . . . . . . . . . . Pick Up 357 | 7 22 8 20 6 46 34 7 7 . 7 12 4 15 1 . 7 5 18 17 17 11 3 13 10 7 27 9 17 Fast Attach 92 | 6 4 . 1 . 8 3 1 1 . 1 5 1 3 . . 2 . 5 5 6 . 2 2 3 6 8 6 13 Attach 174 | 1 4 . . 1 18 10 2 1 . 4 10 4 8 1 . 1 . 6 6 5 2 5 13 13 14 7 4 34 Detach 31 | . . . . . 2 . . 1 . . 4 2 1 . . 1 . 1 1 1 . . 2 . 4 2 . 9 Swap 253 | . 5 1 1 4 40 39 7 6 . 7 20 4 10 3 . 3 8 11 12 10 9 4 4 3 12 19 5 6 Drop 311 | . 11 7 4 3 41 36 7 8 . 7 10 2 15 1 . 12 7 22 27 24 12 2 6 2 7 17 11 10 Fire 921 | 2 76 8 . 22 146 58 5 13 . 19 30 5 38 14 . . 16 23 36 32 46 40 17 27 59 43 41 105 Melee 109 | . . . . . . 22 33 24 . . 8 . 6 . . . . . . . . . . 5 3 2 . 6 Ram 1 | . . . . . . . . . . . . . . . . . . . . . . 1 . . . . . . Kick 1 | . . . . . 1 . . . . . . . . . . . . . . . . . . . . . . . Crush 3 | . . . . . 2 . . . . . . . . . . . . . . . . 1 . . . . . . Escape Stasis 34 | . . . . . . 24 . . . . . . . . . . . . 8 . . . . . . . 2 . Rewire 101 | . . . . . . . . . . . . . . . . . . . 66 . . . 17 . . 11 . 7 Trap 4 | . . . . 2 . 1 . . . . . . . . . . . 1 . . . . . . . . . . Miscellaneous . | . . . . . . . . . . . . . . . . . . . . . . . . . . . . . Route ------- -11/Scrapyard -10/Materials (discovered 4 exits: [*Mat x3] / [*Min]) -10/Mines -10/Exiles -9/Mines (discovered 2 exits: *Mat x2) -8/Materials (discovered 3 exits: *Fac x3) -7/Factory (discovered 3 exits: *Fac / *Low x2) -7/Lower Caves -7/Lower Caves (discovered 2 exits: *Fac / *Dat) -7/Data Miner -6/Proximity Caves -6/Factory (discovered 2 exits: Low x2) -6/Waste -6/Factory (discovered 2 exits: *Low x2) -6/Lower Caves -6/Lower Caves (discovered 2 exits: *Fac / *Zio) -6/Zion -5/Proximity Caves -5/Factory (discovered 4 exits: Fac / Upp / *Ext x2) -5/Extension (discovered 2 exits: *Fac / *Cet) -5/Cetus (discovered 2 exits: *Fac / *Arc) -5/Archives (discovered 2 exits: *Fac / *Hub) -5/Hub_04(d) -4/Factory -4/Waste -4/Factory -4/Armory -3/Research -3/Testing History --------- Turn | Location | Event 23 | -11/Scrapyard | Discovered new exit (range 16) 111 | -11/Scrapyard | Entered Materials 172 | -10/Materials | Discovered new exit (range 12) 304 | -10/Materials | Build established: Mutant 425 | -10/Materials | Repaired Lgt. Treads 825 | -10/Materials | Discovered new exit (range 8) 882 | -10/Materials | Build established: Hauler-Mutant 1094 | -10/Materials | Discovered new exit (range 14) 1249 | -10/Materials | Discovered new exit (range 13) 1535 | -10/Materials | Core integrity fell below 50% 1790 | -10/Materials | Repaired Lgt. Treads 1818 | -10/Materials | Repaired Assault Rifle 1918 | -10/Materials | Entered Mines 1919 | -10/Mines | Learned location of Storage (-9) 1933 | -10/Mines | Deemed a non-threat by the Exiles lab entrance 1935 | -10/Mines | Discovered new exit (range 5) 2022 | -10/Mines | Learned Materials emergency access door positions 2098 | -10/Mines | Learned Materials terminal intel 2147 | -10/Mines | Found a hidden stash of uninstalled traps 2218 | -10/Mines | Received a Rocket Launcher from a helpful Derelict 2361 | -10/Mines | Found a damaged Exp. Sensor Array with a note attached 2365 | -10/Mines | Found Prototype Device 2597 | -10/Mines | Entered Exiles 2647 | -10/Exiles | Met 8R-AWN 2668 | -10/Exiles | Met EX-HEX 2849 | -10/Exiles | Visited The Gauntlet 2893 | -10/Exiles | Met EX-DEC 2935 | -10/Exiles | Learned location of Zion (-6) 2964 | -10/Exiles | Met EX-BIN 3042 | -10/Exiles | Discovered new exit (range 14) 3060 | -10/Exiles | Entered Mines 3150 | -9/Mines | Assembled infested the area 3155 | -9/Mines | Assisted by a Guerilla fighting off Assembled 3216 | -9/Mines | Discovered new exit (range 10) 3425 | -9/Mines | Learned Materials security intel 3921 | -9/Mines | Discovered new exit (range 9) 4168 | -9/Mines | Entered Materials 4168 | -8/Materials | Evolved 4 slots: Utility x4 4171 | -8/Materials | Loaded intel: 12 terminal locations 4171 | -8/Materials | Identified Exp. Sensor Array 4412 | -8/Materials | Lost 6 parts (1p2n2u1w) 4826 | -8/Materials | Repaired Hrd. Light Armor Plating 4853 | -8/Materials | Repaired Lgt. Treads 5011 | -8/Materials | Discovered new exit (range 15) 5446 | -8/Materials | Repaired Lgt. Treads 6154 | -8/Materials | Discovered new exit (range 16) 7218 | -8/Materials | Discovered new exit (range 12) 7238 | -8/Materials | Identified exit to Factory 7240 | -8/Materials | Entered Factory 7240 | -7/Factory | Evolved 2 slots: Utility x2 7513 | -7/Factory | Fabricated Arm. Wheel (x2) 7603 | -7/Factory | Fabricated Arm. Wheel (x2) 8419 | -7/Factory | Repaired Exp. Sensor Array 9546 | -7/Factory | Fabricated Hcp. Storage Unit? 9937 | -7/Factory | Discovered new exit (range 16) 9957 | -7/Factory | Identified exit to Factory 10003 | -7/Factory | Identified exit to Lower Caves 10209 | -7/Factory | Garrison activated, responded to threat 10239 | -7/Factory | Entered Lower Caves 10443 | -7/Lower Caves | Spotted B-75 Beast 10791 | -7/Lower Caves | Learned Factory trap positions 10845 | -7/Lower Caves | Build established: Hauler-Assassin 11161 | -7/Lower Caves | Identified exit to Lower Caves 11495 | -7/Lower Caves | Entered another Lower Caves area 11539 | -7/Lower Caves | Discovered exit to Factory (range 13) 11805 | -7/Lower Caves | Build established: Hauler-Mutant 12105 | -7/Lower Caves | Attracted the attention of an 0b10 checkpoint 12400 | -7/Lower Caves | Discovered new exit (range 16) 12403 | -7/Lower Caves | Learned Factory security intel 12420 | -7/Lower Caves | Identified exit to Data Miner 12443 | -7/Lower Caves | Encountered a Warlord checkpoint 12466 | -7/Lower Caves | Entered Data Miner 12466 | -7/Data Miner | Discovered new exit (range 6) 12493 | -7/Data Miner | Met Data Miner 12518 | -7/Data Miner | Learned location of Section 7 (-2) 12518 | -7/Data Miner | Acquired the access code to Warlord's prototype stash 12541 | -7/Data Miner | Received God Mode back door access code from Data Miner 12571 | -7/Data Miner | Identified exit to Proximity Caves 12573 | -7/Data Miner | Entered Proximity Caves 12788 | -6/Proximity Caves | Escorted by Enhanced Grunt 12883 | -6/Proximity Caves | Spotted B-75 Beast 12898 | -6/Proximity Caves | Allies destroyed B-75 Beast 13119 | -6/Proximity Caves | Found Prototype Device 13120 | -6/Proximity Caves | Identified Exp. Thermal Shield 13985 | -6/Proximity Caves | Entered Factory 13985 | -6/Factory | Evolved 2 slots: Propulsion x1, Utility x1 13986 | -6/Factory | Loaded intel: 77 trap records 14204 | -6/Factory | Repaired Broken Arm. Huge Wheel 14282 | -6/Factory | Local fabrication network quarantined 14320 | -6/Factory | Fabricated Adv. Hacking Suite (x1) 14839 | -6/Factory | Identified exit to Lower Caves 15035 | -6/Factory | First assault squad dispatched 15083 | -6/Factory | Build established: Hacker-Mutant 15123 | -6/Factory | Incoming assault squad redirected 15124 | -6/Factory | Sucked down chute 15124 | -6/Factory | Entered Waste 15144 | -6/Waste | Spotted C-40 Crusher 15147 | -6/Waste | Lost 3 parts (1p1n1w) 15167 | -6/Waste | Spotted C-40 Crusher 15184 | -6/Waste | Spotted C-40 Crusher 15206 | -6/Waste | Spotted C-40 Crusher 15219 | -6/Waste | Warlord forces began an assault 15220 | -6/Waste | Allies destroyed C-40 Crusher 15222 | -6/Waste | Allies destroyed C-40 Crusher 15228 | -6/Waste | Allies destroyed C-40 Crusher 15228 | -6/Waste | Allies destroyed C-40 Crusher 15231 | -6/Waste | Spotted C-40 Crusher 15233 | -6/Waste | Destroyed C-40 Crusher 15237 | -6/Waste | Spotted C-40 Crusher 15242 | -6/Waste | Allies destroyed C-40 Crusher 15375 | -6/Waste | Discovered new exit (range 12) 15400 | -6/Waste | Identified exit to Factory 15407 | -6/Waste | Entered Factory 15407 | -6/Factory | Accompanied by 18 allies 15411 | -6/Factory | Build established: Hauler-Mutant 15968 | -6/Factory | Lost 4 parts (1n2u1w) 16283 | -6/Factory | Incoming investigation squad redirected 16370 | -6/Factory | Lost 3 parts (1p2u) 16903 | -6/Factory | Local fabrication network quarantined 16965 | -6/Factory | Fabricated Exp. Sensor Array (x1) 17145 | -6/Factory | Entered Lower Caves 17266 | -6/Lower Caves | Learned Factory terminal intel 17270 | -6/Lower Caves | Core integrity fell below 50% 17276 | -6/Lower Caves | Attracted the attention of an 0b10 checkpoint 17649 | -6/Lower Caves | Discovered new exit (range 11) 17740 | -6/Lower Caves | Identified exit to Lower Caves 17741 | -6/Lower Caves | Entered another Lower Caves area 17781 | -6/Lower Caves | Discovered new exit (range 9) 17828 | -6/Lower Caves | Identified exit to Factory 18320 | -6/Lower Caves | Learned location of 1 exit from Factory 18373 | -6/Lower Caves | Discovered new exit (range 9) 18408 | -6/Lower Caves | Identified exit to Zion 18505 | -6/Lower Caves | Encountered a Warlord checkpoint 18528 | -6/Lower Caves | Entered Zion 18563 | -6/Zion | Given the Hacking Drone Bay 18564 | -6/Zion | Found Prototype Device 18571 | -6/Zion | Identified Hacking Drone Bay 18651 | -6/Zion | System corruption cleaned by Quarantine Array 18676 | -6/Zion | Discovered new exit (range 14) 18686 | -6/Zion | Received a hallucinogenic algorithm 18961 | -6/Zion | Acquired unknown access codes intercepted by a Zionite 19073 | -6/Zion | Learned Factory stockpile data 19333 | -6/Zion | Found Prototype Energy Gun 19395 | -6/Zion | Learned Factory emergency access door positions 19710 | -6/Zion | Imprinted 19712 | -6/Zion | Declared Zion's savior 19972 | -6/Zion | Identified exit to Proximity Caves 20008 | -6/Zion | Entered Proximity Caves 20008 | -5/Proximity Caves | Accompanied by 4 allies 20232 | -5/Proximity Caves | Attracted the attention of an 0b10 checkpoint 20354 | -5/Proximity Caves | Learned location of 2 exits from Factory 20470 | -5/Proximity Caves | Received a Behemoth hack from an annoying Tinkerer 20555 | -5/Proximity Caves | Learned 8 Factory zone layouts 20837 | -5/Proximity Caves | Entered Factory 20837 | -5/Factory | Accompanied by 3 allies 20837 | -5/Factory | Evolved 2 slots: Weapon x2 20838 | -5/Factory | Identified exit to Extension 20838 | -5/Factory | Identified exit to Factory 20838 | -5/Factory | Identified exit to Upper Caves 20839 | -5/Factory | Identified Storm Laser 20842 | -5/Factory | Loaded intel: 22 terminal locations 20942 | -5/Factory | Zion Heavy squad teleported in 21126 | -5/Factory | Build established: Hauler-Tank 21251 | -5/Factory | Found Prototype Protection 21251 | -5/Factory | Identified Zio. Weapon Casing 21280 | -5/Factory | Found Prototype Protection 21280 | -5/Factory | Identified Zio. Heavy Carapace 21389 | -5/Factory | Zion Kinetic Resupply teleported in 21633 | -5/Factory | Retrieved Zion intel report: Active Garrisons 21697 | -5/Factory | Build established: Hauler-Skirmisher 21786 | -5/Factory | Garrison activated, responded to threat 22123 | -5/Factory | Entered Extension 22219 | -5/Extension | Rescued A7 22249 | -5/Extension | Rescued a captive Derelict 22261 | -5/Extension | Retrieved Zion intel report: Unaware Analyses 22262 | -5/Extension | Zion Fire squad teleported in 22324 | -5/Extension | Rescued a captive Derelict 22342 | -5/Extension | Retrieved Zion intel report: Trap Installations 22936 | -5/Extension | Spotted B-75 Beast 22946 | -5/Extension | Spotted B-75 Beast 22949 | -5/Extension | Allies destroyed B-75 Beast 22961 | -5/Extension | Destroyed B-75 Beast 23070 | -5/Extension | Retrieved Zion intel report: Unaware Schematics 23173 | -5/Extension | Disrupted transfer network 23282 | -5/Extension | Found Imp. Powered Armor 23309 | -5/Extension | Found Imp. Powered Armor 23312 | -5/Extension | Found Imp. Powered Armor 23387 | -5/Extension | Build established: Hauler-Tank 23406 | -5/Extension | Rescued a captive Derelict 23407 | -5/Extension | Retrieved Zion intel report: Emergency Access 23408 | -5/Extension | Rescued a captive Derelict 23461 | -5/Extension | Retrieved Zion intel report: Unaware Analyses 23643 | -5/Extension | Rescued a captive Derelict 23644 | -5/Extension | Retrieved Zion intel report: Prototype Schematics 23659 | -5/Extension | Retrieved Zion intel report: Depthwide Sectors/-1 23666 | -5/Extension | Rescued a captive Derelict 23666 | -5/Extension | Retrieved Zion intel report: Unaware Schematics 23716 | -5/Extension | Terminal network hard line cut 23722 | -5/Extension | Rescued a captive Derelict 23724 | -5/Extension | Rescued a captive Derelict 23762 | -5/Extension | Discovered exit to Factory (range 10) 23764 | -5/Extension | Discovered new exit (range 6) 23783 | -5/Extension | Identified exit to Cetus 23786 | -5/Extension | Entered Cetus 23786 | -5/Cetus | Accompanied by 8 allies (A7) 23791 | -5/Cetus | Acquired a Cetus Manufacturing Module code from A7 23806 | -5/Cetus | Spotted Cetus Guard 23806 | -5/Cetus | Spotted Cetus Guard 23806 | -5/Cetus | Allies destroyed Cetus Guard 23807 | -5/Cetus | Spotted Cetus Guard 23808 | -5/Cetus | Spotted Cetus Guard 23820 | -5/Cetus | Allies destroyed Cetus Guard 23826 | -5/Cetus | Cetus Manufacturing Module disabled 23826 | -5/Cetus | Allies destroyed Cetus Guard 23827 | -5/Cetus | Destroyed Cetus Guard 23834 | -5/Cetus | Extracted ID and sensor layout for unrecognized location from A7's data core 23868 | -5/Cetus | Found Prototype Protection 23869 | -5/Cetus | Identified Med. Regenerative Plating 23993 | -5/Cetus | Retrieved Zion intel report: Depthwide Sectors/0 24042 | -5/Cetus | Discovered new exit (range 16) 24099 | -5/Cetus | Spotted Cetus Guard 24099 | -5/Cetus | Spotted Cetus Guard 24113 | -5/Cetus | Destroyed Cetus Guard 24114 | -5/Cetus | Spotted Cetus Guard 24118 | -5/Cetus | Destroyed Cetus Guard 24127 | -5/Cetus | Build established: Scavenger-Tank 24128 | -5/Cetus | Destroyed Cetus Guard 24129 | -5/Cetus | Spotted Cetus Guard 24139 | -5/Cetus | Destroyed Cetus Guard 24176 | -5/Cetus | Discovered exit to Factory (range 15) 24187 | -5/Cetus | Scared off Revision 17 24362 | -5/Cetus | Identified exit to Archives 24364 | -5/Cetus | Entered Archives 24597 | -5/Archives | Discovered new exit (range 15) 24664 | -5/Archives | Unable to access archive contents 24667 | -5/Archives | Discovered exit to Factory (range 14) 25218 | -5/Archives | Identified exit to Hub_04(d) 25220 | -5/Archives | Entered Hub_04(d) 25399 | -5/Hub_04(d) | Discovered exit to Factory (range 16) 25530 | -5/Hub_04(d) | Retrieved Zion intel report: Active Garrisons 25548 | -5/Hub_04(d) | Retrieved Zion intel report: Prototype Schematics 25566 | -5/Hub_04(d) | Network Hub disabled 25696 | -5/Hub_04(d) | Spotted Lightning 25699 | -5/Hub_04(d) | Spotted Lightning 25701 | -5/Hub_04(d) | Spotted Lightning 25725 | -5/Hub_04(d) | Destroyed Lightning 25731 | -5/Hub_04(d) | System corruption reached 10% 25765 | -5/Hub_04(d) | Found Exp. Targeting Computer 25768 | -5/Hub_04(d) | Found Prototype Device 25778 | -5/Hub_04(d) | Entered Factory 25778 | -4/Factory | Evolved 2 slots: Utility x2 25790 | -4/Factory | Lost 3 parts (1n2w) 25836 | -4/Factory | Zion Recon squad teleported in 25932 | -4/Factory | Repaired Imp. Powered Armor 25964 | -4/Factory | Repaired Adv. Cooling System 25984 | -4/Factory | Repaired Centrium Medium Armor Plating? 26014 | -4/Factory | Repaired Imp. KE Penetrator 26052 | -4/Factory | Repaired Imp. Weapon Cycler? 26183 | -4/Factory | Repaired Centrium Heavy Treads 26210 | -4/Factory | P-70 Sage assimilated allied Sentinel 7a 26223 | -4/Factory | Identified Exp. Phase Shifter 26270 | -4/Factory | Zion Heavy squad teleported in 26342 | -4/Factory | Build established: Scavenger-Gunner 26370 | -4/Factory | Repaired Imp. KE Penetrator 26420 | -4/Factory | Repaired Imp. KE Penetrator 26715 | -4/Factory | Sucked down chute 26715 | -4/Factory | Entered Waste 26715 | -4/Waste | Met up with 2 allies sucked down the chute earlier 26730 | -4/Waste | EMP discharged 26764 | -4/Waste | Spotted C-40 Crusher 26769 | -4/Waste | Destroyed C-40 Crusher 26774 | -4/Waste | Spotted C-40 Crusher 26780 | -4/Waste | Spotted C-40 Crusher 26792 | -4/Waste | Allies destroyed C-40 Crusher 26795 | -4/Waste | Crushed by Compactor (1 part destroyed, 2 dropped) 26795 | -4/Waste | Allies destroyed C-40 Crusher 26802 | -4/Waste | Destroyed C-40 Crusher 26805 | -4/Waste | Spotted C-40 Crusher 26825 | -4/Waste | Crushed by Compactor (1 part destroyed, 1 dropped) 26828 | -4/Waste | Crushed by Compactor (1 part destroyed, 1 dropped) 26830 | -4/Waste | EMP discharged 26830 | -4/Waste | System corruption reached 10% 26831 | -4/Waste | Crushed by Compactor (1 part destroyed) 26855 | -4/Waste | Crushed by Compactor (1 part destroyed, 1 dropped) 26863 | -4/Waste | Crushed by Compactor (0 parts destroyed, 1 dropped) 26866 | -4/Waste | Crushed by Compactor (1 part destroyed) 26870 | -4/Waste | Destroyed C-40 Crusher 26897 | -4/Waste | Lost 6 parts (2p1n1u2w) 26930 | -4/Waste | EMP discharged 26932 | -4/Waste | Spotted C-40 Crusher 26950 | -4/Waste | Crushed by Compactor (1 part destroyed, 1 dropped) 26960 | -4/Waste | Destroyed C-40 Crusher 27030 | -4/Waste | EMP discharged 27030 | -4/Waste | System corruption reached 30% 27046 | -4/Waste | Discovered new exit (range 10) 27060 | -4/Waste | Identified exit to Factory 27062 | -4/Waste | Entered Factory 27252 | -4/Factory | Build established: Scavenger-Mutant 27514 | -4/Factory | Repaired Imp. Medium Treads 27554 | -4/Factory | Zion Kinetic Resupply teleported in 27868 | -4/Factory | Build established: Scavenger-Gunner 28304 | -4/Factory | Zion Hacker squad teleported in 28312 | -4/Factory | First assault squad dispatched 28340 | -4/Factory | Incoming assault squad redirected 28450 | -4/Factory | Zion Demo squad teleported in 28504 | -4/Factory | Terminal network hard line cut 28529 | -4/Factory | Discovered new exit (range 9) 28590 | -4/Factory | Lost 6 parts (1p2n1u2w) 28626 | -4/Factory | Incoming assault squad redirected 28712 | -4/Factory | Identified exit to Armory 28714 | -4/Factory | Entered Armory 28855 | -4/Armory | Zion Heavy squad teleported in 29179 | -4/Armory | Retrieved Zion intel report: Prototype Stockpiles 29180 | -4/Armory | Zion Heavy squad teleported in 29204 | -4/Armory | Core integrity fell below 50% 29366 | -4/Armory | Discovered new exit (range 3) 29367 | -4/Armory | Identified exit to Research 29464 | -4/Armory | First assault squad dispatched 29491 | -4/Armory | Incoming assault squad redirected 29829 | -4/Armory | Lost 7 parts (2n2u3w) 29850 | -4/Armory | Zion Kinetic Resupply teleported in 29925 | -4/Armory | Entered Research 29925 | -3/Research | Accompanied by 1 ally 29925 | -3/Research | Evolved 2 slots: Propulsion x1, Utility x1 29965 | -3/Research | Incoming investigation squad redirected 30425 | -3/Research | First assault squad dispatched 30454 | -3/Research | Incoming assault squad redirected 30547 | -3/Research | Garrison activated, responded to threat 30704 | -3/Research | Retrieved Zion intel report: Active Garrisons 30705 | -3/Research | Zion Light squad teleported in 30868 | -3/Research | Discovered new exit (range 5) 30892 | -3/Research | Identified exit to Testing 30913 | -3/Research | Found Quantum Capacitor 30935 | -3/Research | Entered Testing 31002 | -3/Testing | Scanned by Researcher 31023 | -3/Testing | Found Prototype Energy Cannon 31023 | -3/Testing | Identified Potential Cannon 31185 | -3/Testing | First assault squad dispatched 31202 | -3/Testing | Incoming assault squad redirected 31319 | -3/Testing | Build established: Scavenger-Mutant 31362 | -3/Testing | Spotted Striker 31436 | -3/Testing | Spotted Striker 31448 | -3/Testing | Spotted Alpha 7 31448 | -3/Testing | Destroyed Striker 31450 | -3/Testing | Incoming assault squad redirected 31459 | -3/Testing | Destroyed Striker 31556 | -3/Testing | Lost 14 parts (1p4n3u6w) 31564 | -3/Testing | Destroyed Alpha 7 31585 | -3/Testing | Destroyed 8 combat bots 31632 | -3/Testing | Lost 4 parts (1p3w) 31706 | -3/Testing | System corruption reached 10% 31753 | -3/Testing | Incoming assault squad redirected 31772 | -3/Testing | Stole the SGEMP Prototype 31841 | -3/Testing | Found Prototype Leg 31841 | -3/Testing | Identified Myomer Exoskeleton 31843 | -3/Testing | Core integrity fell below 50% 31925 | -3/Testing | Build established: Scavenger-Gunner 31958 | -3/Testing | Incoming assault squad redirected 31961 | -3/Testing | Incoming assault squad redirected 31996 | -3/Testing | Found Prototype Launcher 32058 | -3/Testing | System corruption reached 30% 32097 | -3/Testing | Lost 8 parts (1p4u3w) 32097 | -3/Testing | Found Prototype Processor 32097 | -3/Testing | Identified Spectral Analyzer 32201 | -3/Testing | Spotted PD-Q4LSOA5ZHE 32218 | -3/Testing | Released all parts (11) 32219 | -3/Testing | Core integrity fell below 20% 32223 | -3/Testing | Destroyed by PD-Q4LSOA5ZHE with Hellfire Missile Launcher Last Messages --------------- 32217_ Penetrated by Slug. 32217_ Slug penetrates Earth. 32218_ The unstable cave ceiling collapses. 32218_ Released Spectral Analyzer. 32218_ Released Phasing Sabre. 32218_ Released Power Sword. 32218_ Released Myomer Exoskeleton. 32218_ Released Adv. Target Analyzer. 32218_ Released Hcp. Storage Unit. 32218_ Released Exp. Energy Well. 32218_ Released Adv. Cloaking Device. 32218_ Released Imp. Fusion Compressor. 32218_ U-05 Engineer builds a Wall. 32219_ The unstable cave ceiling collapses. 32219_ Slug penetrates Wall. 32219_ Slug penetrates Earth. 32220_ U-05 Engineer builds a Wall. 32222_ Penetrated by Slug. 32222_ Slug penetrates Terminal. [Achievement: Punisher] Map ----- +----------------------------------------------------+ | ?????????????????????????????????????????????????? | | ?????????????????????????????????????????????????? | | ?????????????????????????????????????????????????? | | ?????????????????????????????????????????????????? | | ?????????????????????????????????????????????????? | | ?????????????????????????????????????????????????? | | ?????????????????????????????????????????????????? | | ?????????????????????????????????????????????????? | | ?????????????????????????????????????????????????? | | ?????????????????????????????????????????????????? | | ?????????????????????????????????????????????????? | | ?????????????????????????????????????????????????? | | ?????????????????????????????????????????????????? | | ??? ?????????????????##???????????????????????? | | ?? #???????????????? !???????????????????????? | | ?? #????????????? ?? ???????????????????????? | | ??# #????????????? ? ???????????????????????? | | ??# #???#????????? #??????????????????????? | | ??# #???# ???????# """ #??????????????????????? | | ??# #???# ??###### """ #??????????????????????? | | ??# #???# ??# # """ #??????????????????????? | | ??# #####+### # #???#####??????????????? | | ??# # " # + """ #?? ! #??????????????? | | ?## # "%" # # """ #??/ #??????????????? | | ?? # """ # # """ #?! "#??????????????? | | ?? # """" # # @## ""#??????????????? | | ??# # "" # # ""#??????????????? | | ### # " hp ""#??????????????? | | + # " # &=* ""#??????????????? | | # # # *=!]= o T"#??????????????? | | # # pd=!/== ""#??????????????? | | # # " g /!!/!= ""#??????????????? | | # # g !=== ""#??????????????? | | ! # # # | # = ""#??????????????? | | # ## ### gg ### "#??????????????? | | # w o## ##??? #??????????????? | | # ###### ####????#######??????????????? | | ### #????# #????????????????????????????? | | #???######+#+#####????????????????????????? | | ####/####### #????????????????????????? | | %== # #????????????????????????? | | !% %*%# ##???????????????????????? | | """ """= %*# "#???????????????????????? | | """ " # "#???????????????????????? | | """ "" * # """ """ "#???????????????????????? | | # """ """ T#???????????????????????? | | """ # """ """ "#???????????????????????? | | """ # """ """ "#???????????????????????? | | """ # """ """ "#???????????????????????? | | " " # ##???????????????????????? | +----------------------------------------------------+ Best States ------------- Heat Dissipation 108 Coolant Potential 100 Energy Generation 35 Energy Capacity 1325 Matter Stores 800 Matter Capacity 800 Sight Range 24 Robot Scan Range 30 Terrain Scan Range 24 Terrain Scan Density 210 Cloak Strength 4 Additional Mass Support 16 EM Shielding 2 Corruption Prevention 20 Armor Coverage 1200 Resistance: KI 30 Resistance: TH 25 Propulsion Shielding 33 Weapon Shielding 100 Thermal Conversion 90 Weapon Cycling 20 Phase Shifting 20 Evasion (%) 60 Targeting Accuracy 12 Melee Accuracy 8 Target Analysis 8 Armor Integrity Analysis 66 Recoil Reduction 4 Matter Filtering 50 Energy Filtering 50 Kinecelleration 40 Salvage Targeting 4 Offensive Hacking 46 Defensive Hacking 24 Item Schematics ----------------- Hcp. Storage Unit | -10/Materials | Hacked Arm. Wheel | -8/Materials | Scanalyzed Exp. Sensor Array | -8/Materials | Scanalyzed Combat Drone Bay | -7/Data Miner | Free Lgt. Regenerative Plating | -7/Data Miner | Free Exp. Targeting Computer | -7/Data Miner | Free Exp. ECM Suite | -7/Data Miner | Free Cloaking Device | -7/Data Miner | Free Mni. Smartbomb Launcher | -7/Data Miner | Free Biomechanical Wings | -5/Extension | Z-intel Thunder Hammer | -5/Extension | Z-intel Imp. Energy Well | -5/Extension | Z-intel Tri-rail Accelerator | -5/Extension | Z-intel Lgt. Neutrino Core | -5/Extension | Z-intel Fusion Reactor | -5/Extension | Z-intel Imp. Thermal Defense Suite | -5/Extension | Z-intel Cld. Plasma Cannon | -5/Extension | Z-intel Thermal Defense Suite | -5/Extension | Z-intel Enh. Flexi-carbon Leg | -5/Extension | Z-intel Imp. Lightning Gun | -5/Extension | Z-intel Adv. Power Amplifier | -5/Hub_04(d) | Z-intel Kinetic Spear | -5/Hub_04(d) | Z-intel Cld. Plasma Rifle | -5/Hub_04(d) | Z-intel Imp. Airjet | -5/Hub_04(d) | Z-intel Imp. Heavy Machine Gun | -5/Hub_04(d) | Z-intel Tiamat Missile Launcher | -5/Hub_04(d) | Z-intel Imp. Matter Compressor | -5/Hub_04(d) | Z-intel Cld. Particle Cannon | -5/Hub_04(d) | Z-intel Cld. Cesium-ion Thruster | -5/Hub_04(d) | Z-intel Exp. Heat Sink | -5/Hub_04(d) | Z-intel Hvy. Proton Cannon | -5/Hub_04(d) | Z-intel Robot Schematics ------------------ S-27 Virus | -7/Data Miner | Free G-50 Soldier | -7/Data Miner | Free L-41 Fighter | -7/Data Miner | Free H-66 Slayer | -7/Data Miner | Free P-70 Sage | -7/Data Miner | Free I-36 Angel | -7/Data Miner | Free R-06 Scavenger | -5/Extension | Z-intel K-01 Serf | -5/Extension | Z-intel A-15 Conveyor | -5/Extension | Z-intel Y-64 Sentinel | -5/Extension | Z-intel X-72 Disruptor | -5/Extension | Z-intel B-60 Warrior | -5/Extension | Z-intel A-02 Transporter | -5/Extension | Z-intel T-07 Excavator | -5/Extension | Z-intel Fabricated ------------ Arm. Wheel | x2 | -7/Factory Arm. Wheel | x2 | -7/Factory Hcp. Storage Unit | x1 | -7/Factory Adv. Hacking Suite | x1 | -6/Factory | Preloaded Exp. Sensor Array | x1 | -6/Factory Alien Tech Used ----------------- None Achievements -------------- Punisher Challenges ------------ None Game ------ Seed AutogunMyomerEngine Manual? 0 Play Time 04:57:06 Cumulative 241.4 hours Start 2020.10.31 @ 12:50:26 End 2020.11.01 @ 20:27:49 Sessions 5 Manual Loads 0 Difficulty Rogue Special Mode Halloween2020/ForbiddenLore Game No. 100 Rogue 100 Adventurer 0 Explorer 0 Win Type - Total 6 Types 4/0/1/1/0/0/0/0/0 Lore% 53 Gallery% 83 Achievement% 64 Wizard Run 0 Options --------- ASCII 0 Keyboard 0 Movement Numpad Keybinds 0 Fullscreen 1 Font 18/SmallcapsGlow Map View 76x50 Tactical HUD 1 Map Filters NONE Filters NONE Steam 1 RUN: 9a4ef0c8-24b6-4e8b-b25b-552f37429467